Cogmind - Beta 11.1 @@@ ROGUE MODE // 2022.08.17 @ 11:52:08 Player: E Sleek Result: Self-destructed Performance ------------- Evolutions (1) 500 Regions Visited (2) 400 Robots Destroyed (8) 40 Value Destroyed (230) 230 Prototype IDs (0) 0 Alien Tech Used (0) 0 Bonus (0) 0 TOTAL SCORE: 1170 Bonus ------- None Cogmind --------- Core Integrity 162/400 Matter 290/300 Energy 125/125 System Corruption 0% Temperature Cool (6) Movement Core (100) Ox1 Location -9/Materials Parts ------- > --- POWER (1) -------- Light Ion Engine > --- PROPULSION (3) --- (None) > --- UTILITY (3) ------ ECM Suite Hacking Suite > --- WEAPON (2) ------- (None) > --- INVENTORY (5) ---- Hover Unit Small Storage Unit Signal Interpreter Datajack Peak State ------------ > --- POWER ------------ Light Ion Engine > --- PROPULSION ------- Hover Unit Hover Unit Hover Unit > --- UTILITY ---------- Signal Interpreter ECM Suite Hacking Suite > --- WEAPON ----------- Mining Claw > --- INVENTORY -------- Hover Unit Small Storage Unit Datajack [Rating: 10] Favorites ----------- Power Light Ion Engine Engine Light Ion Engine Propulsion Hover Unit Wheel Wheel Hover Unit Hover Unit Utility Small Storage Unit Device ECM Suite Storage Small Storage Unit Processor Signal Interpreter Hackware Hacking Suite Weapon Mining Claw Energy Gun Small Laser Ballistic Gun Assault Rifle Slashing Weapon Mining Claw Special Melee Weapon Datajack Build | -11 -10 -9 ------- Run | Scr Mat Mat Slots Evolved 2 | . . 2 Power . | . . . Propulsion 1 | . . 1 Utility 1 | . . 1 Weapon . | . . . Parts Attached 20 | 6 12 2 Power 3 | 1 2 . Engine 3 | 1 2 . Core . | . . . Reactor . | . . . Propulsion 5 | 2 2 1 Treads . | . . . Leg . | . . . Wheel 2 | 2 . . Hover 3 | . 2 1 Flight . | . . . Utility 6 | 1 4 1 Device 2 | . 2 . Storage 1 | 1 . . Processor 2 | . 1 1 Hackware 1 | . 1 . Protection . | . . . Artifact . | . . . Weapon 6 | 2 4 . Energy Gun 2 | 1 1 . Energy Cannon . | . . . Ballistic Gun 1 | 1 . . Ballistic Cannon . | . . . Launcher . | . . . Special Weapon . | . . . Impact Weapon . | . . . Slashing Weapon 1 | . 1 . Piercing Weapon . | . . . Special Melee Weapon 2 | . 2 . Unidentified Prototypes . | . . . Parts Lost 6 | . 2 4 Power 1 | . 1 . Propulsion 4 | . 1 3 Utility . | . . . Weapon 1 | . . 1 Highest Loss Streak 4 | . 2 4 To Critical Strikes . | . . . Average Slot Usage (%) 90 | . 92 86 Engine 12 | . 13 11 Wheel 8 | . 13 . Hover 18 | . 12 31 Device 11 | . 12 11 Storage 8 | . 12 . Processor 4 | . . 11 Hackware 4 | . 1 11 Energy Gun 3 | . 4 . Ballistic Gun 6 | . 9 . Slashing Weapon 5 | . 3 11 Special Melee Weapon 4 | . 7 . Naked Turns . | . . . Heaviest Build 14 | 13 14 7 Greatest Support 26 | 26 26 18 Greatest Overweight (x) 2 | 1 2 . Average Overweight (x) . | . . . Largest Inventory Capacity 8 | 8 8 5 Average Capacity 6 | 7 7 5 Most Carried 8 | 1 8 4 Average Carried 3 | . 2 3 Final Capacity 8 | 8 5 5 Final Carried 5 | 1 5 4 Class Distribution -------------------- 100% | Mutant Dominant Class ---------------- Mutant | -10/Materials Mutant | -9/Materials Resources | -11 -10 -9 ----------- Run | Scr Mat Mat Matter Collected 486 | 211 275 . Remotely . | . . . Salvage Created 301 | . 301 . Parts 19 | . 19 . Haulers Intercepted 1 | . 1 . Recyclers Shooed . | . . . Parts Field Recycled . | . . . Retrieved Matter . | . . . Parts Self-Destructed . | . . . Prevented . | . . . Kills | -11 -10 -9 ------- Run | Scr Mat Mat Combat Hostiles Destroyed 5 | . 5 . Guns 5 | . 5 . Classes Destroyed 4 | . 4 . Hauler 1 | . 1 . Operator 1 | . 1 . Watcher 1 | . 1 . Grunt 5 | . 5 . Best Kill Streak 2 | . 2 . Combat Bots Only 2 | . 2 . Max Kills in Single Turn 1 | . 1 . Gunslinging . | . . . Exploded . | . . . Melee . | . . . Uniques/NPCs Destroyed . | . . . Combat | -11 -10 -9 -------- Run | Scr Mat Mat Damage Taken 720 | . 320 400 Core 321 | . 83 238 Absorbed by Shields . | . . . Core Remaining (%) 83 | 100 66 . Volleys Fired 42 | . 42 . Largest 2 | . 2 . Hottest 60 | . 60 . Shots Fired 52 | . 52 . Gun 52 | . 52 . Cannon . | . . . Launcher . | . . . Special . | . . . Kinetic 42 | . 42 . Thermal 10 | . 10 . Explosive . | . . . Electromagnetic . | . . . Robot Hit Streak 7 | . 7 . Robot Miss Streak 3 | . 3 . Penetration Max . | . . . Secondary Targets . | . . . Shots Hit Robots 43 | . 39 4 Core Hits 18 | . 17 1 Critical Kills . | . . . Critical Parts Destroyed 1 | . 1 . Critical Strikes 1 | . 1 . Destroy 1 | . 1 . Melee Attacks 22 | . 7 15 Impact . | . . . Slashing 21 | . 6 15 Piercing . | . . . Sneak Attacks 2 | . 2 . Combat Hostiles . | . . . Follow-up Attacks . | . . . Damage Inflicted 598 | . 530 68 Guns 468 | . 468 . Cannons . | . . . Explosions . | . . . Melee 130 | . 62 68 Ramming . | . . . Kinetic 397 | . 397 . Thermal 71 | . 71 . Explosive . | . . . Electromagnetic . | . . . Impact . | . . . Slashing 130 | . 62 68 Piercing . | . . . Highest Corruption . | . . . Average Corruption . | . . . Corruption Purged . | . . . Corruption Blocked . | . . . Overload Shots . | . . . Overflow Damage . | . . . Projectiles . | . . . Explosions . | . . . Melee . | . . . Knockbacks . | . . . Impact . | . . . Kinetic . | . . . Secondary . | . . . Self-Inflicted Damage . | . . . Shots . | . . . Rammed . | . . . Targets Rammed . | . . . Kicked . | . . . Crushed . | . . . Highest Temperature 39 | . 39 . Average Temperature 20 | . 20 . Received Heat Transfer 258 | . 201 57 Siege Activations . | . . . Robots Corrupted . | . . . Combat Hostiles . | . . . Parts Fried . | . . . Impact Corruptions . | . . . Robots Melted . | . . . Combat Hostiles . | . . . Parts Melted . | . . . Heat Transferred 175 | . 175 . Parts Sabotaged . | . . . Parts Stolen . | . . . Parts Stripped . | . . . Power Chain Reactions . | . . . Missiles Intercepted . | . . . Alert | -11 -10 -9 ------- Run | Scr Mat Mat Peak Influence 229 | . 229 92 Initial 20 | . . 20 Average 79 | . 105 43 Maximum Alert Level 1 | . 1 . Low Security (%) 86 | 100 78 100 Level 1 13 | . 21 . Level 2 . | . . . Level 3 . | . . . Level 4 . | . . . Level 5 . | . . . High Security . | . . . Max Security . | . . . Squads Dispatched 3 | . 2 1 Investigation 1 | . 1 . Extermination . | . . . Reinforcement 2 | . 1 1 Assault . | . . . Garrison . | . . . Intercept . | . . . Searches Triggered . | . . . Construction Impeded . | . . . Haulers Reinforced . | . . . Active Scanning Responses . | . . . Cargo Convoy Interrupts . | . . . Stealth | -11 -10 -9 --------- Run | Scr Mat Mat Distress Signals 3 | . 3 . Communications Jammed . | . . . Distress Signals . | . . . Times Spotted 18 | . 11 7 Peak Tracking Total 5 | . 5 4 Tactical Retreats 4 | . 1 3 Traps | -11 -10 -9 ------- Run | Scr Mat Mat Traps Triggered . | . . . Indirectly . | . . . Trap Hack Attempts . | . . . Triggered . | . . . Disarmed . | . . . Reprogrammed . | . . . Reused . | . . . Traps Extracted . | . . . Installed . | . . . Triggered . | . . . Machines | -11 -10 -9 ---------- Run | Scr Mat Mat Machines Disabled . | . . . Max in Single Turn . | . . . Machines Sabotaged . | . . . Garrisons Compromised . | . . . Overloaded Fab Kills . | . . . Hacking | -11 -10 -9 --------- Run | Scr Mat Mat Machines Accessed 6 | . 4 2 Terminals 5 | . 3 2 Fabricators . | . . . Repair Stations . | . . . Recycling Units 1 | . 1 . Scanalyzers . | . . . Garrison Access . | . . . Total Hacks 11 | . 7 4 Successful 7 | . 4 3 Failed 4 | . 3 1 Catastrophic . | . . . Database Lockouts . | . . . Manual . | . . . Terminals 8 | . 4 4 Fabricators . | . . . Repair Stations . | . . . Recycling Units 3 | . 3 . Scanalyzers . | . . . Garrison Access . | . . . Terminal Hacks 5 | . 2 3 Record 2 | . . 2 Unreport Threat 1 | . . 1 Locate Traps 1 | . 1 . Zone Layout 1 | . 1 . Fabricator Hacks . | . . . Repair Station Hacks . | . . . Recycling Unit Hacks 2 | . 2 . Report Inventory 1 | . 1 . Retrieve Components 1 | . 1 . Scanalyzer . | . . . Garrison Access Hacks . | . . . Unauthorized Hacks . | . . . Terminals . | . . . Fabricators . | . . . Repair Stations . | . . . Recycling Units . | . . . Scanalyzers . | . . . Garrison Access . | . . . Data Cores Recovered . | . . . Used . | . . . Hacking Detections 4 | . 2 2 Full Trace Events 1 | . 1 . Feedback Events . | . . . Feedback Blocked . | . . . Robot Schematics Acquired . | . . . Robots Built . | . . . Authchips . | . . . Time . | . . . Total Robot Build Rating . | . . . Part Schematics Acquired . | . . . Parts Built . | . . . Authchips . | . . . Time . | . . . Total Part Build Rating . | . . . Parts Repaired . | . . . Time . | . . . Parts Recycled . | . . . Recycled Matter . | . . . Retrieved Matter . | . . . Retrieved Components 7 | . 7 . Parts Scanalyzed . | . . . Part Schematics Acquired . | . . . Parts Damaged . | . . . Bothacking | -11 -10 -9 ------------ Run | Scr Mat Mat Used RIF Installer . | . . . Robots Hacked 1 | . 1 . Non-combat 1 | . 1 . Combat . | . . . Robot Hacks Applied 1 | . 1 . no_distress 1 | . 1 . Relay Couplers Released . | . . . Fabnet Peak Effective % . | . . . Robots Rewired . | . . . Allies Hacked . | . . . Hacks Repelled . | . . . Allies | -11 -10 -9 -------- Run | Scr Mat Mat Total Allies . | . . . Largest Group . | . . . Highest-Rated Group . | . . . Highest-Rated Ally . | . . . Total Orders . | . . . Ally Attacks . | . . . Total Damage . | . . . Kills . | . . . Allies Corrupted . | . . . Allies Melted . | . . . Intel | -11 -10 -9 ------- Run | Scr Mat Mat Robot Analysis Total . | . . . Derelict Logs Recovered . | . . . Drone Launches . | . . . Drone Recoveries . | . . . Exploration | -11 -10 -9 ------------- Run | Scr Mat Mat Turns Passed 874 | 46 544 284 Spaces Moved 652 | 43 394 215 Core 9 | 9 . . Treads . | . . . Legs . | . . . Wheels 192 | 34 158 . Hover 451 | . 236 215 Flight . | . . . Fastest Speed 50 | 50 56 52 Average Speed 72 | 84 82 52 Slowest Speed 180 | 100 180 52 Overloaded Moves . | . . . Propulsion Burnouts . | . . . Robots Hopped . | . . . Cave-ins Triggered . | . . . Exploration Rate (%) 25 | 3 51 21 Regions Visited 2 Branch Regions . Pre-discovered Areas . | . . . Known Exits Taken . | . . . Unknown Exits Taken 2 | 1 1 . Scrap Searched . | . . . Spaces Dug 12 | . 4 8 Terrain Destroyed 12 | . 4 8 Melee 12 | . 4 8 Projectile . | . . . AOE . | . . . Terrain Rammed . | . . . Walls Destroyed . | . . . Machines Disabled . | . . . Actions | -11 -10 -9 --------- Run | Scr Mat Mat Total 958 | 49 552 357 Wait 199 | . 75 124 Move 650 | 42 393 215 Hop . | . . . Pick Up 11 | 1 9 1 Fast Attach 15 | 6 9 . Attach 5 | . 3 2 Detach 2 | . 2 . Swap . | . . . Drop 12 | . 12 . Fire 42 | . 42 . Melee 22 | . 7 15 Ram . | . . . Kick . | . . . Crush . | . . . Escape Stasis . | . . . Rewire . | . . . Trap . | . . . Miscellaneous . | . . . Route ------- -11/Scrapyard -10/Materials (discovered 2 exits: *Mat / [*Min]) -9/Materials (discovered 1 exit: *Sto) History --------- Turn | Location | Event 3 | -11/Scrapyard | Discovered new exit (range 15) 47 | -11/Scrapyard | Entered Materials 170 | -10/Materials | Discovered new exit (range 9) 301 | -10/Materials | Build established: Mutant 434 | -10/Materials | Discovered new exit (range 14) 591 | -10/Materials | Entered another Materials area 591 | -9/Materials | Evolved 2 slots: Propulsion x1, Utility x1 593 | -9/Materials | Discovered new exit (range 11) 613 | -9/Materials | Identified exit to Storage 872 | -9/Materials | Core integrity fell below 50% 875 | -9/Materials | Self-destructed Last Messages --------------- excessive collateral damage. Corresponding defensive measures have rendered it somewhat weak against thermal attacks. For emergency situations where an area has been overrun, or a garrison has been infiltrated, the entrance and inner tunnel may be permanently sealed to prevent passage and contain the threat. 00613_ EXIT=IDENTIFIED: STORAGE 00651_ Acquired Signal Interpreter. 00821_ Connecting with Terminal... [Achievement: Everything Is Under Control] >>Alert(Purge) Purged threat record, alert level lowered. 00826_ O-16 Technician uses terminal to summon reinforcements. 00826_ ALERT: Hostiles spotted, dispatching reinforcements to Terminal M003. 00826_ O-16 Technician locks terminal. [Achievement: Part-time Excavator] 00837_ K-01 Serf collects debris. 00856_ Hover Unit destroyed. 00871_ Signal Interpreter severed. 00873_ Mining Claw destroyed. Map ----- +----------------------------------------------------+ | ???????# ??????????????????????????????????????? | | ???????# ??????????????????????????????????????? | | ???????# ??????????????????????????????????????? | | ???????# ###???????????????????????????????????? | | ???????# #"#######?????????????????????????????? | | ???????# # "##????????????????????????????? | | ???????# # """ #"#######+####?????????????????? | | ???????# # """ # # #?????????????????? | | ???##### # """ # " / #?????????????????? | | ???#[[ # # T # #?????????????????? | | ???#[[ # """ # " # #?????????????????? | | ???#== / """ # # #?????????????????? | | ???#== # """ # # #?????????????????? | | ???#!! # # # #?????????????????? | | ???#!! # """ # #"# ###??????#??????????? | | ???##### # """ # "## #??????? ??????????? | | ######?# # """ ######## #?????? ????????? | | #?# # #??????# #????? ?????????? | | "" #?# ########?????## ##??? ? ????????? | | "" =#?# #?????????# ] #?? !! ????????? | | "" ### #?????????# ## !! ???????? | | + #?????????# T ! ?????????? | | #########+###/#?????????# ###### ???????? | | +??????? #?????????# #??????????????????? | | ####??????? ????????####+###??????????????????? | | #????????? ##???????# @l #??????????????????? | | #????????? #????????# ! #??????????????????? | | #????????""" #???????## gY #??????????????????? | | #????????""" #???????#; """ #??????????????????? | | #??????? """ #???????## """ #??????????????????? | | #??????? ?????????# """ #??????????????????? | | #????????#+#######????#;######??????????????????? | | ##???????# # #????###???????????????????????? | | ######### # "" #??????????????????????????????? | | # """ #??????????????????????????????? | | + R" #??????????????????????????????? | | # """ #??????????????????????????????? | | ##+######## #??????????????????????????????? | | ## ## #??????????????????????????????? | | ## """ ## !*!#??????????????????????????????? | | ## """ ## **! #?????????????????????????????? | | ## """ ## *! ##?????????????????????????????? | | ## ## #??????????????????????????????? | | ## """ ## #??????????????????????????????? | | ## = """ #?######??????????????????????????????? | | ## """ #?????????????????????????????????????? | | ## [ ??????????????????????????????????????? | | ########????????????????????????????????????????? | | ##???????????????????????????????????????????????? | | ?????????????????????????????????????????????????? | +----------------------------------------------------+ Best States ------------- Heat Dissipation 39 Energy Generation 10 Energy Capacity 250 Matter Stores 300 Matter Capacity 300 Sight Range 18 Terrain Scan Density 10 ECM Strength 1 Evasion (%) 54 Offensive Hacking 10 Item Schematics ----------------- None Robot Schematics ------------------ None Fabricated ------------ Nothing Alien Tech Used ----------------- None Achievements -------------- Everything Is Under Control Part-time Excavator Challenges ------------ None Game ------ Seed EnhancedCompactReactor Manual? 0 Play Time 00:16:12 Cumulative 6.2 hours Start 2022.08.17 @ 11:37:03 End 2022.08.17 @ 11:52:08 Sessions 1 Manual Loads 0 Difficulty Rogue Special Mode None Game No. 6 Rogue 6 Adventurer 0 Explorer 0 Win Type - Total 0 Types 0/0/0/0/0/0/0/0/0 Lore% 12 Gallery% 12 Achievement% 11 Wizard Run 0 Options --------- ASCII 0 Keyboard 0 Movement Mouse Keybinds 0 Fullscreen 1 Font 18/X11 Map View 76x50 Tactical HUD 1 Map Filters NONE Filters NONE Steam 1 RUN: 3352f27e-420f-419e-ad6b-913808346876